Effective Date,Department,Supplier Name,Payment Date,Amounts **,Purpose of Spend,Merchant Category,Card Transaction
Statement 01/04/2016 - 18/04/2016,Adults and Communities,ALDI,14/04/2016,25.41,Cleaning Materials - General,"Grocery Stores, Supermarkets",GPC
Statement 01/04/2016 - 18/04/2016,Adults and Communities,Amazon Svcs Europe SAR,04/04/2016,20.00,Books - General,Book Stores,GPC
Statement 01/04/2016 - 18/04/2016,Adults and Communities,Amazon Svcs Europe SAR,16/04/2016,28.52,Other Equipment & Materials - General,Book Stores,GPC
Statement 01/04/2016 - 18/04/2016,Adults and Communities,Amazon UK Marketplace,14/04/2016,2.81,Books - General,Book Stores,GPC
Statement 01/04/2016 - 18/04/2016,Adults and Communities,Amazon UK Marketplace,04/04/2016,22.89,General Equipment - General,Book Stores,GPC
Statement 01/04/2016 - 18/04/2016,Adults and Communities,Amazon UK Marketplace,05/04/2016,15.26,General Equipment - General,Miscellaneous and Specialty Retail Stores,GPC
Statement 01/04/2016 - 18/04/2016,Adults and Communities,Amazon UK Marketplace,07/04/2016,7.46,General Equipment - General,Miscellaneous and Specialty Retail Stores,GPC
Statement 01/04/2016 - 18/04/2016,Adults and Communities,Amazon UK Marketplace,07/04/2016,8.30,General Equipment - General,Miscellaneous and Specialty Retail Stores,GPC
Statement 01/04/2016 - 18/04/2016,Adults and Communities,Amazon UK Marketplace,08/04/2016,30.45,General Equipment - General,Miscellaneous and Specialty Retail Stores,GPC
Statement 01/04/2016 - 18/04/2016,Adults and Communities,Amazon UK Marketplace,14/04/2016,5.99,General Equipment - General,Miscellaneous and Specialty Retail Stores,GPC
Statement 01/04/2016 - 18/04/2016,Adults and Communities,Amazon UK Marketplace,04/04/2016,63.04,Materials - General,Miscellaneous and Specialty Retail Stores,GPC
Statement 01/04/2016 - 18/04/2016,Adults and Communities,Amazon UK Marketplace,05/04/2016,2.38,Materials - General,Miscellaneous and Specialty Retail Stores,GPC
Statement 01/04/2016 - 18/04/2016,Adults and Communities,Amazon UK Marketplace,12/04/2016,23.99,Materials - General,Miscellaneous and Specialty Retail Stores,GPC
Statement 01/04/2016 - 18/04/2016,Adults and Communities,Amazon UK Marketplace,13/04/2016,10.50,Materials - General,Miscellaneous and Specialty Retail Stores,GPC
Statement 01/04/2016 - 18/04/2016,Adults and Communities,Amazon UK Marketplace,13/04/2016,5.20,Materials - General,Miscellaneous and Specialty Retail Stores,GPC
Statement 01/04/2016 - 18/04/2016,Adults and Communities,Amazon UK Marketplace,14/04/2016,2.81,Materials - General,Miscellaneous and Specialty Retail Stores,GPC
Statement 01/04/2016 - 18/04/2016,Adults and Communities,Amazon UK Marketplace,14/04/2016,32.29,Materials - General,Miscellaneous and Specialty Retail Stores,GPC
Statement 01/04/2016 - 18/04/2016,Adults and Communities,Amazon UK Marketplace,07/04/2016,4.74,Other Equipment & Materials - General,Book Stores,GPC
Statement 01/04/2016 - 18/04/2016,Adults and Communities,Amazon UK Marketplace,07/04/2016,4.99,Other Equipment & Materials - General,Book Stores,GPC
Statement 01/04/2016 - 18/04/2016,Adults and Communities,Amazon UK Marketplace,07/04/2016,3.20,Other Equipment & Materials - General,Miscellaneous and Specialty Retail Stores,GPC
Statement 01/04/2016 - 18/04/2016,Adults and Communities,Amazon UK Marketplace,14/04/2016,2.64,Other Equipment & Materials - General,Miscellaneous and Specialty Retail Stores,GPC
Statement 01/04/2016 - 18/04/2016,Adults and Communities,Amazon UK Marketplace,15/04/2016,15.43,Other Equipment & Materials - General,Book Stores,GPC
Statement 01/04/2016 - 18/04/2016,Adults and Communities,Amazon UK Marketplace,15/04/2016,14.24,Other Equipment & Materials - General,Miscellaneous and Specialty Retail Stores,GPC
Statement 01/04/2016 - 18/04/2016,Adults and Communities,Amazon UK Retail,14/04/2016,7.61,Stationery - General,Direct Marketers - Other,GPC
Statement 01/04/2016 - 18/04/2016,Adults and Communities,ARGOS LTD,04/04/2016,62.38,Aids & Adaptations - Minor Adaptations,Discount Stores,GPC
Statement 01/04/2016 - 18/04/2016,Adults and Communities,ARGOS LTD,01/04/2016,17.99,Materials - General,Discount Stores,GPC
Statement 01/04/2016 - 18/04/2016,Adults and Communities,ARGOS LTD,11/04/2016,52.98,Materials - General,Discount Stores,GPC
Statement 01/04/2016 - 18/04/2016,Adults and Communities,ASDA STORES 4477,11/04/2016,9.76,Schools Agency staff - Support Staff,"Grocery Stores, Supermarkets",GPC
Statement 01/04/2016 - 18/04/2016,Adults and Communities,ASDA SUPERSTORE,06/04/2016,11.83,Provisions - General,"Grocery Stores, Supermarkets",GPC
Statement 01/04/2016 - 18/04/2016,Adults and Communities,B AND Q 1012,01/04/2016,28.36,R & M of Buildings - General,"Building Materials, Lumber Stores",GPC
Statement 01/04/2016 - 18/04/2016,Adults and Communities,B AND Q 1043,04/04/2016,21.68,Operational Equipment - General,"Building Materials, Lumber Stores",GPC
Statement 01/04/2016 - 18/04/2016,Adults and Communities,B AND Q 1052,06/04/2016,13.60,Aids & Adaptations - Minor Adaptations,"Building Materials, Lumber Stores",GPC
Statement 01/04/2016 - 18/04/2016,Adults and Communities,B AND Q 1052,06/04/2016,69.66,Aids & Adaptations - Minor Adaptations,"Building Materials, Lumber Stores",GPC
Statement 01/04/2016 - 18/04/2016,Adults and Communities,B AND Q 1052,07/04/2016,58.03,Aids & Adaptations - Minor Adaptations,"Building Materials, Lumber Stores",GPC
Statement 01/04/2016 - 18/04/2016,Adults and Communities,B AND Q 1299,13/04/2016,30.28,Aids & Adaptations - Minor Adaptations,"Building Materials, Lumber Stores",GPC
Statement 01/04/2016 - 18/04/2016,Adults and Communities,B&M RETAIL LTD,02/04/2016,33.97,Materials - General,Discount Stores,GPC
Statement 01/04/2016 - 18/04/2016,Adults and Communities,BC.BASECAMP 2997305,01/04/2016,14.05,Other Services - General,Membership Organizations-Not Elsewhere Classified,GPC
Statement 01/04/2016 - 18/04/2016,Adults and Communities,BLINDS 2 GO LTD,07/04/2016,35.69,General Equipment - General,"Drapery, Window Coverings, and Upholstery Stores",GPC
Statement 01/04/2016 - 18/04/2016,Adults and Communities,BOC TEL ORDER,13/04/2016,6.76,Operational Equipment - General,Chemicals and Allied Products Not Elsewhere Classi,GPC
Statement 01/04/2016 - 18/04/2016,Adults and Communities,CAMERAKING.CO.UK,15/04/2016,78.85,Materials - General,Camera and Photographic Supply Stores,GPC
Statement 01/04/2016 - 18/04/2016,Adults and Communities,CENTRAL ENG COOP,03/04/2016,18.20,Materials - General,Department Stores,GPC
Statement 01/04/2016 - 18/04/2016,Adults and Communities,CENTRAL ENG COOP,04/04/2016,55.01,Materials - General,Department Stores,GPC
Statement 01/04/2016 - 18/04/2016,Adults and Communities,CENTRAL ENG COOP,07/04/2016,107.76,Materials - General,Department Stores,GPC
Statement 01/04/2016 - 18/04/2016,Adults and Communities,CENTRAL ENG COOP,08/04/2016,51.35,Materials - General,Department Stores,GPC
Statement 01/04/2016 - 18/04/2016,Adults and Communities,CENTRAL ENG COOP,08/04/2016,20.69,Materials - General,Department Stores,GPC
Statement 01/04/2016 - 18/04/2016,Adults and Communities,CENTRAL ENG COOP,09/04/2016,8.00,Materials - General,Department Stores,GPC
Statement 01/04/2016 - 18/04/2016,Adults and Communities,CENTRAL ENG COOP,14/04/2016,73.16,Materials - General,Department Stores,GPC
Statement 01/04/2016 - 18/04/2016,Adults and Communities,CENTRAL ENG COOP,17/04/2016,6.03,Materials - General,Department Stores,GPC
Statement 01/04/2016 - 18/04/2016,Adults and Communities,CO-OP GROUP FOOD,11/04/2016,71.40,Postal Services - General,"Grocery Stores, Supermarkets",GPC
Statement 01/04/2016 - 18/04/2016,Adults and Communities,CROSSBOW EDUCATION,07/04/2016,14.32,General Equipment - General,Correspondence Schools,GPC
Statement 01/04/2016 - 18/04/2016,Adults and Communities,DEMONTFORD UNIVERSITY-,08/04/2016,3.62,Other Expenditure - General,"Eating Places, Restaurants",GPC
Statement 01/04/2016 - 18/04/2016,Adults and Communities,DLT MEDIA LTD,12/04/2016,275.88,Books - General,Advertising Services,GPC
Statement 01/04/2016 - 18/04/2016,Adults and Communities,DUNELM (SOFT FURNISHIN,01/04/2016,8.03,Materials - General,"Drapery, Window Coverings, and Upholstery Stores",GPC
Statement 01/04/2016 - 18/04/2016,Adults and Communities,DVLA VEHICLE TAX,12/04/2016,232.50,Road Licences - General,Government Services-Not Elsewhere Classified,GPC
Statement 01/04/2016 - 18/04/2016,Adults and Communities,DVLA VEHICLE TAX,12/04/2016,232.50,Road Licences - General,Government Services-Not Elsewhere Classified,GPC
Statement 01/04/2016 - 18/04/2016,Adults and Communities,EASTMIDLANDSTRAINS,14/04/2016,55.50,Casual/Essential - General,Passenger Railways,GPC
Statement 01/04/2016 - 18/04/2016,Adults and Communities,EB PICTURE THE POET C,09/04/2016,60.00,Other Equipment & Materials - General,Business Services-Not Elsewhere Classified,GPC
Statement 01/04/2016 - 18/04/2016,Adults and Communities,FACEBOOK 5C8HG9WAK2,15/04/2016,20.17,Publicity/Marketing - Information Provision,Advertising Services,GPC
Statement 01/04/2016 - 18/04/2016,Adults and Communities,FAST KEY SERVICES LIMI,14/04/2016,14.19,Other Expenditure - General,Business Services-Not Elsewhere Classified,GPC
Statement 01/04/2016 - 18/04/2016,Adults and Communities,FOREIGN EXCHANGE FEE,04/04/2016,0.39,Other Services - General,Misc-Unknown,GPC
Statement 01/04/2016 - 18/04/2016,Adults and Communities,GLEN DIMPLEX HOME APPL,15/04/2016,42.80,Materials - General,Household Appliance Stores,GPC
Statement 01/04/2016 - 18/04/2016,Adults and Communities,H&BBC INTERNET,06/04/2016,71.61,Subscriptions - General,Government Services-Not Elsewhere Classified,GPC
Statement 01/04/2016 - 18/04/2016,Adults and Communities,HANDSET SOLUTIONS,15/04/2016,176.55,Training Expenses - General,Telecommunication Equipment Including Telephone Sa,GPC
Statement 01/04/2016 - 18/04/2016,Adults and Communities,HOMEBASE LTD,06/04/2016,31.21,General Equipment - General,"Building Materials, Lumber Stores",GPC
Statement 01/04/2016 - 18/04/2016,Adults and Communities,HOMEBASE LTD,14/04/2016,28.49,General Equipment - General,"Building Materials, Lumber Stores",GPC
Statement 01/04/2016 - 18/04/2016,Adults and Communities,ICELAND,08/04/2016,23.50,Materials - General,"Grocery Stores, Supermarkets",GPC
Statement 01/04/2016 - 18/04/2016,Adults and Communities,ICELAND,14/04/2016,11.00,Materials - General,"Grocery Stores, Supermarkets",GPC
Statement 01/04/2016 - 18/04/2016,Adults and Communities,JOHNSTONES DECORATING,14/04/2016,72.00,Aids & Adaptations - Minor Adaptations,"Glass, Paint, Wallpaper Stores",GPC
Statement 01/04/2016 - 18/04/2016,Adults and Communities,JOHNSTONES DECORATING,14/04/2016,72.00,Aids & Adaptations - Minor Adaptations,"Glass, Paint, Wallpaper Stores",GPC
Statement 01/04/2016 - 18/04/2016,Adults and Communities,LEIC CITY COUNCIL,08/04/2016,13.00,Other Expenditure - General,Government Services-Not Elsewhere Classified,GPC
Statement 01/04/2016 - 18/04/2016,Adults and Communities,LEICESTER THURMAS,05/04/2016,22.88,Aids & Adaptations - Minor Adaptations,"Building Materials, Lumber Stores",GPC
Statement 01/04/2016 - 18/04/2016,Adults and Communities,LEICESTER THURMAS,05/04/2016,57.46,Aids & Adaptations - Minor Adaptations,"Building Materials, Lumber Stores",GPC
Statement 01/04/2016 - 18/04/2016,Adults and Communities,MCDONALDS,02/04/2016,13.16,Subsistence - General,"Eating Places, Restaurants",GPC
Statement 01/04/2016 - 18/04/2016,Adults and Communities,MERCURY NEWS 63917/453,04/04/2016,102.72,Newspapers & Periodicals - General,"Grocery Stores, Supermarkets",GPC
Statement 01/04/2016 - 18/04/2016,Adults and Communities,NATURAL HISTORY MUSEUM,14/04/2016,75.00,Public Transport -  Staff - General,"Theatrical Products (Except Motion Pictures), Tick",GPC
Statement 01/04/2016 - 18/04/2016,Adults and Communities,NEXT 0318 LEICESTER HO,08/04/2016,16.00,Furniture - General,Family Clothing Stores,GPC
Statement 01/04/2016 - 18/04/2016,Adults and Communities,NORWEGIAN AI3287194048183,08/04/2016,45.80,Video Recordings - General,NORWEGIANAIR,GPC
Statement 01/04/2016 - 18/04/2016,Adults and Communities,OCADO RETAIL LIMIT,02/04/2016,73.51,Provisions - General,"Miscellaneous Food Stores-Convenience Stores, Mark",GPC
Statement 01/04/2016 - 18/04/2016,Adults and Communities,OCADO RETAIL LIMIT,04/04/2016,108.38,Provisions - General,"Miscellaneous Food Stores-Convenience Stores, Mark",GPC
Statement 01/04/2016 - 18/04/2016,Adults and Communities,OCADO RETAIL LIMIT,08/04/2016,105.60,Provisions - General,"Miscellaneous Food Stores-Convenience Stores, Mark",GPC
Statement 01/04/2016 - 18/04/2016,Adults and Communities,OCADO RETAIL LIMIT,11/04/2016,67.48,Provisions - General,"Miscellaneous Food Stores-Convenience Stores, Mark",GPC
Statement 01/04/2016 - 18/04/2016,Adults and Communities,OCADO RETAIL LIMIT,15/04/2016,71.09,Provisions - General,"Miscellaneous Food Stores-Convenience Stores, Mark",GPC
Statement 01/04/2016 - 18/04/2016,Adults and Communities,PAYPAL  LEADCOOLIMI,13/04/2016,2.85,Operational Equipment - General,"RADIO, TELEVISION, AND STEREO STORES (ELECTRONIC STORES)",GPC
Statement 01/04/2016 - 18/04/2016,Adults and Communities,PAYPAL  MEMORABILIA,14/04/2016,11.00,Other Equipment & Materials - General,Miscellaneous and Specialty Retail Stores,GPC
Statement 01/04/2016 - 18/04/2016,Adults and Communities,PAYPAL  SPARTANMOVI,13/04/2016,5.30,Operational Equipment - General,Miscellaneous House Furnishing Specialty Shops,GPC
Statement 01/04/2016 - 18/04/2016,Adults and Communities,PAYPAL  SPARTANMOVI,13/04/2016,5.30,Operational Equipment - General,Miscellaneous House Furnishing Specialty Shops,GPC
Statement 01/04/2016 - 18/04/2016,Adults and Communities,PAYPAL  SPARTANMOVI,13/04/2016,5.30,Operational Equipment - General,Miscellaneous House Furnishing Specialty Shops,GPC
Statement 01/04/2016 - 18/04/2016,Adults and Communities,POST OFFICE COUNTER,06/04/2016,15.36,Other Equipment & Materials - General,Postage Stamps,GPC
Statement 01/04/2016 - 18/04/2016,Adults and Communities,POUNDSTRETCHER 292,12/04/2016,36.00,Furniture - General,"Drapery, Window Coverings, and Upholstery Stores",GPC
Statement 01/04/2016 - 18/04/2016,Adults and Communities,ROYAL MAIL,08/04/2016,110.00,Postal Services - General,Postage Stamps,GPC
Statement 01/04/2016 - 18/04/2016,Adults and Communities,ROYAL MAIL  0845606040,12/04/2016,1.50,Postal Services - General,Postage Stamps,GPC
Statement 01/04/2016 - 18/04/2016,Adults and Communities,RYMAN,06/04/2016,21.47,Stationery - General,"Stationery, Office, and School Supply Stores",GPC
Statement 01/04/2016 - 18/04/2016,Adults and Communities,SAFESTORE LIMITED,11/04/2016,117.00,Other Expenditure - General,Public Warehousing,GPC
Statement 01/04/2016 - 18/04/2016,Adults and Communities,SAINSBURYS LOCAL,06/04/2016,6.00,Provisions - General,"Grocery Stores, Supermarkets",GPC
Statement 01/04/2016 - 18/04/2016,Adults and Communities,SAINSBURYS LOCAL,07/04/2016,6.00,Provisions - General,"Grocery Stores, Supermarkets",GPC
Statement 01/04/2016 - 18/04/2016,Adults and Communities,SAINSBURYS LOCAL,16/04/2016,10.05,Provisions - General,"Grocery Stores, Supermarkets",GPC
Statement 01/04/2016 - 18/04/2016,Adults and Communities,Sainsburys S/mkts,06/04/2016,16.80,Materials - General,"Grocery Stores, Supermarkets",GPC
Statement 01/04/2016 - 18/04/2016,Adults and Communities,SAINSBURYS S/MKTS,09/04/2016,23.40,Provisions - General,"Grocery Stores, Supermarkets",GPC
Statement 01/04/2016 - 18/04/2016,Adults and Communities,SCREWFIX,12/04/2016,2.08,Display/Conservn/Exhibitions - Conservation,"Building Materials, Lumber Stores",GPC
Statement 01/04/2016 - 18/04/2016,Adults and Communities,SCREWFIX DIRECT,01/04/2016,99.96,R & M of Buildings - General,"Building Materials, Lumber Stores",GPC
Statement 01/04/2016 - 18/04/2016,Adults and Communities,SCREWFIX DIRECT,04/04/2016,99.96,R & M of Buildings - General,"Building Materials, Lumber Stores",GPC
Statement 01/04/2016 - 18/04/2016,Adults and Communities,SCREWFIX DIRECT LT,07/04/2016,38.19,Aids & Adaptations - Minor Adaptations,"Building Materials, Lumber Stores",GPC
Statement 01/04/2016 - 18/04/2016,Adults and Communities,STARBUCKS,08/04/2016,3.17,Other Expenditure - General,Fast-Food Restaurants (Quick Payment Service Pilot,GPC
Statement 01/04/2016 - 18/04/2016,Adults and Communities,SURVEYMONKEY.COM,12/04/2016,21.67,IT Equipment - Licences,Computer Network/Information Services,GPC
Statement 01/04/2016 - 18/04/2016,Adults and Communities,TAMWORTH FIREPLACE LTD,08/04/2016,484.00,R & M of Buildings - General,Plumbing and Heating Equipment,GPC
Statement 01/04/2016 - 18/04/2016,Adults and Communities,TESCO STORES 5182,01/04/2016,153.18,Provisions - General,"Grocery Stores, Supermarkets",GPC
Statement 01/04/2016 - 18/04/2016,Adults and Communities,TESCO STORES 5182,04/04/2016,75.63,Provisions - General,"Grocery Stores, Supermarkets",GPC
Statement 01/04/2016 - 18/04/2016,Adults and Communities,TESCO STORES 5182,08/04/2016,111.72,Provisions - General,"Grocery Stores, Supermarkets",GPC
Statement 01/04/2016 - 18/04/2016,Adults and Communities,TESCO STORES 5182,11/04/2016,106.05,Provisions - General,"Grocery Stores, Supermarkets",GPC
Statement 01/04/2016 - 18/04/2016,Adults and Communities,TESCO STORES 5182,12/04/2016,15.15,Provisions - General,"Grocery Stores, Supermarkets",GPC
Statement 01/04/2016 - 18/04/2016,Adults and Communities,THE RANGE,05/04/2016,6.99,Furniture - General,Department Stores,GPC
Statement 01/04/2016 - 18/04/2016,Adults and Communities,THEPLACEFORHOMESLT,04/04/2016,51.95,Operational Equipment - DDA,"Furniture, Home Furnishings and Equipment Stores,",GPC
Statement 01/04/2016 - 18/04/2016,Adults and Communities,THREE-BILLPAY(CC),04/04/2016,19.99,Other Expenditure - General,Telecommunication Service Including Local and Long,GPC
Statement 01/04/2016 - 18/04/2016,Adults and Communities,THREE-BILLPAY(CC),04/04/2016,9.99,Schools Agency staff - Support Staff,Telecommunication Service Including Local and Long,GPC
Statement 01/04/2016 - 18/04/2016,Adults and Communities,TRAINLINE,13/04/2016,79.46,Casual/Essential - General,Passenger Railways,GPC
Statement 01/04/2016 - 18/04/2016,Adults and Communities,TRAINLINE,05/04/2016,162.18,Public Transport -  Staff - General,Passenger Railways,GPC
Statement 01/04/2016 - 18/04/2016,Adults and Communities,TRAINLINE,11/04/2016,174.01,Public Transport -  Staff - General,Passenger Railways,GPC
Statement 01/04/2016 - 18/04/2016,Adults and Communities,TRAINLINE,12/04/2016,137.80,Public Transport -  Staff - General,Passenger Railways,GPC
Statement 01/04/2016 - 18/04/2016,Adults and Communities,TRAINLINE,12/04/2016,11.07,Public Transport -  Staff - General,Passenger Railways,GPC
Statement 01/04/2016 - 18/04/2016,Adults and Communities,TRAINLINE,13/04/2016,72.01,Public Transport -  Staff - General,Passenger Railways,GPC
Statement 01/04/2016 - 18/04/2016,Adults and Communities,TRAINLINE,13/04/2016,109.75,Public Transport -  Staff - General,Passenger Railways,GPC
Statement 01/04/2016 - 18/04/2016,Adults and Communities,TRAINLINE,15/04/2016,-146.50,Public Transport -  Staff - General,Passenger Railways,GPC
Statement 01/04/2016 - 18/04/2016,Adults and Communities,TRAVELODGE WEBSITE,05/04/2016,103.29,Other Expenditure - General,Travelodge,GPC
Statement 01/04/2016 - 18/04/2016,Adults and Communities,TVLICENSING.CO.UK,04/04/2016,145.50,General Equipment - General,"Management, Consulting and Public Relations Servic",GPC
Statement 01/04/2016 - 18/04/2016,Adults and Communities,ULLESTHORPE STORES,11/04/2016,4.94,Other Expenditure - General,News Dealers and Newsstands,GPC
Statement 01/04/2016 - 18/04/2016,Adults and Communities,VIRGINTRAINSEC SERVCS,13/04/2016,87.00,Casual/Essential - General,Passenger Railways,GPC
Statement 01/04/2016 - 18/04/2016,Adults and Communities,W BOYES & CO LTD COALV,01/04/2016,8.65,Materials - General,Discount Stores,GPC
Statement 01/04/2016 - 18/04/2016,Adults and Communities,W BOYES & CO LTD COALV,08/04/2016,4.38,Other Equipment & Materials - General,Discount Stores,GPC
Statement 01/04/2016 - 18/04/2016,Adults and Communities,WATERSTONES,08/04/2016,221.42,Books - General,Book Stores,GPC
Statement 01/04/2016 - 18/04/2016,Adults and Communities,WICKES HINCKLEY,11/04/2016,42.46,Other Expenditure - General,"Building Materials, Lumber Stores",GPC
Statement 01/04/2016 - 18/04/2016,Adults and Communities,WILKO RETAIL LIMIT,13/04/2016,10.90,Materials - General,Household Appliance Stores,GPC
Statement 01/04/2016 - 18/04/2016,Adults and Communities,WILKO RETAIL LIMIT,15/04/2016,15.35,Materials - General,Household Appliance Stores,GPC
Statement 01/04/2016 - 18/04/2016,Adults and Communities,WM MORRISON 054,04/04/2016,49.63,Materials - General,"Grocery Stores, Supermarkets",GPC
Statement 01/04/2016 - 18/04/2016,Adults and Communities,WM MORRISON 054,14/04/2016,125.59,Materials - General,"Grocery Stores, Supermarkets",GPC
Statement 01/04/2016 - 18/04/2016,Adults and Communities,WP-STAMPS DIRECT L,12/04/2016,27.60,Stationery - General,"Stationery, Office, and School Supply Stores",GPC
Statement 01/04/2016 - 18/04/2016,Adults and Communities,WWW.LASA.ORG.UK,13/04/2016,312.00,Other Expenditure - General,Charitable and Social Service Organizations,GPC
Statement 01/04/2016 - 18/04/2016,Adults and Communities,WWW.POSTURITE.CO.UK,04/04/2016,124.80,General Equipment - General,Commercial Furniture,GPC
Statement 01/04/2016 - 18/04/2016,C&YPS-Non Delegated,ALDI,11/04/2016,3.23,Cleaning Materials - General,"Grocery Stores, Supermarkets",GPC
Statement 01/04/2016 - 18/04/2016,C&YPS-Non Delegated,ALDI,11/04/2016,24.68,Other Expenditure - General,"Grocery Stores, Supermarkets",GPC
Statement 01/04/2016 - 18/04/2016,C&YPS-Non Delegated,ALDI,11/04/2016,0.16,Personal Needs of Clients - Drugs & Medical Requisitions,"Grocery Stores, Supermarkets",GPC
Statement 01/04/2016 - 18/04/2016,C&YPS-Non Delegated,ALDI,11/04/2016,0.32,Personal Needs of Clients - General,"Grocery Stores, Supermarkets",GPC
Statement 01/04/2016 - 18/04/2016,C&YPS-Non Delegated,ALDI,11/04/2016,102.22,Provisions - General,"Grocery Stores, Supermarkets",GPC
Statement 01/04/2016 - 18/04/2016,C&YPS-Non Delegated,ALDI,14/04/2016,10.39,Subsistence - General,"Grocery Stores, Supermarkets",GPC
Statement 01/04/2016 - 18/04/2016,C&YPS-Non Delegated,Amazon Svcs Europe SAR,14/04/2016,75.60,Other Expenditure - General,Book Stores,GPC
Statement 01/04/2016 - 18/04/2016,C&YPS-Non Delegated,Amazon Svcs Europe SAR,15/04/2016,3.80,Telephones - General,Book Stores,GPC
Statement 01/04/2016 - 18/04/2016,C&YPS-Non Delegated,Amazon UK Marketplace,03/04/2016,3.91,Books - General,Book Stores,GPC
Statement 01/04/2016 - 18/04/2016,C&YPS-Non Delegated,Amazon UK Marketplace,08/04/2016,71.94,Materials - General,Miscellaneous and Specialty Retail Stores,GPC
Statement 01/04/2016 - 18/04/2016,C&YPS-Non Delegated,Amazon UK Marketplace,12/04/2016,11.99,Materials - General,Miscellaneous and Specialty Retail Stores,GPC
Statement 01/04/2016 - 18/04/2016,C&YPS-Non Delegated,Amazon UK Marketplace,15/04/2016,3.78,Other Expenditure - General,Miscellaneous and Specialty Retail Stores,GPC
Statement 01/04/2016 - 18/04/2016,C&YPS-Non Delegated,Amazon UK Marketplace,15/04/2016,22.27,Other Expenditure - General,Miscellaneous and Specialty Retail Stores,GPC
Statement 01/04/2016 - 18/04/2016,C&YPS-Non Delegated,Amazon UK Marketplace,16/04/2016,3.90,Other Expenditure - General,Miscellaneous and Specialty Retail Stores,GPC
Statement 01/04/2016 - 18/04/2016,C&YPS-Non Delegated,Amazon UK Retail,01/04/2016,108.80,Other Expenditure - General,Direct Marketers - Other,GPC
Statement 01/04/2016 - 18/04/2016,C&YPS-Non Delegated,Amazon UK Retail,12/04/2016,54.99,Other Expenditure - General,Direct Marketers - Other,GPC
Statement 01/04/2016 - 18/04/2016,C&YPS-Non Delegated,Amazon UK Retail,13/04/2016,12.97,Other Expenditure - General,Direct Marketers - Other,GPC
Statement 01/04/2016 - 18/04/2016,C&YPS-Non Delegated,Amazon UK Retail,15/04/2016,12.11,Other Expenditure - General,Direct Marketers - Other,GPC
Statement 01/04/2016 - 18/04/2016,C&YPS-Non Delegated,ARGOS LTD,12/04/2016,38.98,Other Equipment & Materials - General,Discount Stores,GPC
Statement 01/04/2016 - 18/04/2016,C&YPS-Non Delegated,ASDA SUPERSTORE,06/04/2016,8.00,Materials - General,"Grocery Stores, Supermarkets",GPC
Statement 01/04/2016 - 18/04/2016,C&YPS-Non Delegated,ASDA SUPERSTORE,11/04/2016,4.00,Materials - General,"Grocery Stores, Supermarkets",GPC
Statement 01/04/2016 - 18/04/2016,C&YPS-Non Delegated,ASDA SUPERSTORE,12/04/2016,3.75,Materials - General,"Grocery Stores, Supermarkets",GPC
Statement 01/04/2016 - 18/04/2016,C&YPS-Non Delegated,ASDA SUPERSTORE,14/04/2016,55.00,Materials - General,"Grocery Stores, Supermarkets",GPC
Statement 01/04/2016 - 18/04/2016,C&YPS-Non Delegated,ASDA SUPERSTORE,11/04/2016,154.78,Provisions - General,"Grocery Stores, Supermarkets",GPC
Statement 01/04/2016 - 18/04/2016,C&YPS-Non Delegated,ASH BANK HOTEL,05/04/2016,3.89,Subsistence - General,"Eating Places, Restaurants",GPC
Statement 01/04/2016 - 18/04/2016,C&YPS-Non Delegated,B AND Q 1157,14/04/2016,75.02,Other Equipment & Materials - General,"Building Materials, Lumber Stores",GPC
Statement 01/04/2016 - 18/04/2016,C&YPS-Non Delegated,BRITISH A   1258538784505,02/04/2016,-409.66,Asylum Seekers - General,British Airways,GPC
Statement 01/04/2016 - 18/04/2016,C&YPS-Non Delegated,BRITISH A   1258538786216,02/04/2016,-384.66,Asylum Seekers - General,British Airways,GPC
Statement 01/04/2016 - 18/04/2016,C&YPS-Non Delegated,BT BILL PAYMENT 1,12/04/2016,63.00,Telephones - General,Telecommunication Equipment Including Telephone Sa,GPC
Statement 01/04/2016 - 18/04/2016,C&YPS-Non Delegated,CENTRAL ENG COOP,12/04/2016,6.20,Other Equipment & Materials - General,Department Stores,GPC
Statement 01/04/2016 - 18/04/2016,C&YPS-Non Delegated,COSTA COFFEE,05/04/2016,10.75,Other Expenditure - General,"Miscellaneous Food Stores-Convenience Stores, Mark",GPC
Statement 01/04/2016 - 18/04/2016,C&YPS-Non Delegated,COSTA COFFEE,04/04/2016,5.25,Subsistence - General,Fast-Food Restaurants (Quick Payment Service Pilot,GPC
Statement 01/04/2016 - 18/04/2016,C&YPS-Non Delegated,DE MONTFORT EXPERTISE LTD,07/04/2016,54.26,Other Transfer Payments - Sector 17- Other,"Colleges, Universities, Professional Schools, and",GPC
Statement 01/04/2016 - 18/04/2016,C&YPS-Non Delegated,EAST MIDLANDS MARKET HAR,05/04/2016,11.00,Casual/Essential - General,Automobile Parking Lots and Garages,GPC
Statement 01/04/2016 - 18/04/2016,C&YPS-Non Delegated,EAST MIDLANDS TRAI,05/04/2016,55.00,Casual/Essential - General,Passenger Railways,GPC
Statement 01/04/2016 - 18/04/2016,C&YPS-Non Delegated,EAST RIDING COUNCIL,07/04/2016,10.00,Other Transfer Payments - Section 24,Government Services-Not Elsewhere Classified,GPC
Statement 01/04/2016 - 18/04/2016,C&YPS-Non Delegated,FAIRHAVEN HOTEL,12/04/2016,150.00,Subsistence - General,"Lodging-Hotels, Motels, Resorts",GPC
Statement 01/04/2016 - 18/04/2016,C&YPS-Non Delegated,FAIRHAVEN HOTEL,12/04/2016,150.00,Subsistence - General,"Lodging-Hotels, Motels, Resorts",GPC
Statement 01/04/2016 - 18/04/2016,C&YPS-Non Delegated,FAST KEY SERVICES LIMI,14/04/2016,69.07,Other Expenditure - General,Business Services-Not Elsewhere Classified,GPC
Statement 01/04/2016 - 18/04/2016,C&YPS-Non Delegated,GOOSEBERRY BUSH,04/04/2016,202.94,Other Transfer Payments - Section 23 Grants,Child Care Services,GPC
Statement 01/04/2016 - 18/04/2016,C&YPS-Non Delegated,GRO HM PASSPORT OFFICE,13/04/2016,9.25,Other Transfer Payments - Section 24,Government Services-Not Elsewhere Classified,GPC
Statement 01/04/2016 - 18/04/2016,C&YPS-Non Delegated,GRO HM PASSPORT OFFICE,13/04/2016,9.25,Other Transfer Payments - Section 24,Government Services-Not Elsewhere Classified,GPC
Statement 01/04/2016 - 18/04/2016,C&YPS-Non Delegated,HOTEL PAID VIA EVIIVO,06/04/2016,45.00,Other Transfer Payments - Leaving Care Grants,Business Services-Not Elsewhere Classified,GPC
Statement 01/04/2016 - 18/04/2016,C&YPS-Non Delegated,INDEED TEL+35312545907,08/04/2016,15.12,Recruitment Advertising - General,Business Services-Not Elsewhere Classified,GPC
Statement 01/04/2016 - 18/04/2016,C&YPS-Non Delegated,KCJONESCONF,07/04/2016,-10.00,Training Expenses - General,"Theatrical Products (Except Motion Pictures), Tick",GPC
Statement 01/04/2016 - 18/04/2016,C&YPS-Non Delegated,KCJONESCONF,07/04/2016,312.00,Training Expenses - General,"Theatrical Products (Except Motion Pictures), Tick",GPC
Statement 01/04/2016 - 18/04/2016,C&YPS-Non Delegated,KCJONESCONF,07/04/2016,-30.00,Training Expenses - General,"Theatrical Products (Except Motion Pictures), Tick",GPC
Statement 01/04/2016 - 18/04/2016,C&YPS-Non Delegated,KCJONESCONF,08/04/2016,35.00,Training Expenses - General,"Theatrical Products (Except Motion Pictures), Tick",GPC
Statement 01/04/2016 - 18/04/2016,C&YPS-Non Delegated,KEYTEK VT,05/04/2016,130.74,Other Transfer Payments - Section 24,Carpentry,GPC
Statement 01/04/2016 - 18/04/2016,C&YPS-Non Delegated,LE PAIN QUOTIDIEN,05/04/2016,4.40,Subsistence - General,"Eating Places, Restaurants",GPC
Statement 01/04/2016 - 18/04/2016,C&YPS-Non Delegated,LEIC CITY COUNCIL,04/04/2016,-20.00,Other Expenditure - General,Government Services-Not Elsewhere Classified,GPC
Statement 01/04/2016 - 18/04/2016,C&YPS-Non Delegated,LEIC CITY COUNCIL,08/04/2016,-9.00,Other Transfer Payments - Education Costs,Government Services-Not Elsewhere Classified,GPC
Statement 01/04/2016 - 18/04/2016,C&YPS-Non Delegated,LEIC CITY COUNCIL,07/04/2016,23.00,Other Transfer Payments - Section 23 Grants,Government Services-Not Elsewhere Classified,GPC
Statement 01/04/2016 - 18/04/2016,C&YPS-Non Delegated,LEIC CITY COUNCIL,07/04/2016,33.00,Other Transfer Payments - Section 23 Grants,Government Services-Not Elsewhere Classified,GPC
Statement 01/04/2016 - 18/04/2016,C&YPS-Non Delegated,LEIC CITY COUNCIL,07/04/2016,33.00,Other Transfer Payments - Section 23 Grants,Government Services-Not Elsewhere Classified,GPC
Statement 01/04/2016 - 18/04/2016,C&YPS-Non Delegated,LEIC CITY COUNCIL,13/04/2016,13.00,Other Transfer Payments - Section 23 Grants,Government Services-Not Elsewhere Classified,GPC
Statement 01/04/2016 - 18/04/2016,C&YPS-Non Delegated,LEIC CITY COUNCIL,14/04/2016,13.00,Other Transfer Payments - Section 23 Grants,Government Services-Not Elsewhere Classified,GPC
Statement 01/04/2016 - 18/04/2016,C&YPS-Non Delegated,LEIC CITY COUNCIL,13/04/2016,13.00,Other Transfer Payments - Sector 17- Other,Government Services-Not Elsewhere Classified,GPC
Statement 01/04/2016 - 18/04/2016,C&YPS-Non Delegated,LEICESTERSHIRE C COUNC,01/04/2016,21.00,Other Expenditure - General,Government Services-Not Elsewhere Classified,GPC
Statement 01/04/2016 - 18/04/2016,C&YPS-Non Delegated,LEICESTERSHIRE C COUNC,13/04/2016,11.00,Other Transfer Payments - Section 23 Grants,Government Services-Not Elsewhere Classified,GPC
Statement 01/04/2016 - 18/04/2016,C&YPS-Non Delegated,LEICESTERSHIRE C COUNC,07/04/2016,11.00,Other Transfer Payments - Section 24,Government Services-Not Elsewhere Classified,GPC
Statement 01/04/2016 - 18/04/2016,C&YPS-Non Delegated,LEICESTERSHIRE C COUNC,13/04/2016,11.00,Other Transfer Payments - Section 24,Government Services-Not Elsewhere Classified,GPC
Statement 01/04/2016 - 18/04/2016,C&YPS-Non Delegated,LIDL UK,16/04/2016,19.36,Provisions - General,"Grocery Stores, Supermarkets",GPC
Statement 01/04/2016 - 18/04/2016,C&YPS-Non Delegated,M&S SIMPLY FOOD - SSP,05/04/2016,5.75,Provisions - General,"Miscellaneous Food Stores-Convenience Stores, Mark",GPC
Statement 01/04/2016 - 18/04/2016,C&YPS-Non Delegated,MCDONALDS,15/04/2016,1.59,Subsistence - General,Fast-Food Restaurants (Quick Payment Service Pilot,GPC
Statement 01/04/2016 - 18/04/2016,C&YPS-Non Delegated,NATIONAL EXPRESS LIMITED,07/04/2016,13.00,Other Transfer Payments - Section 24,"Bus Lines, Charters, Tour Buses",GPC
Statement 01/04/2016 - 18/04/2016,C&YPS-Non Delegated,NCP LIMITED,05/04/2016,4.40,Public Transport -  Staff - General,Automobile Parking Lots and Garages,GPC
Statement 01/04/2016 - 18/04/2016,C&YPS-Non Delegated,PARKING LEIC CC,05/04/2016,4.00,Other Transport Costs - General,Government Services-Not Elsewhere Classified,GPC
Statement 01/04/2016 - 18/04/2016,C&YPS-Non Delegated,PARKING LEIC CC,14/04/2016,8.00,Other Transport Costs - General,Government Services-Not Elsewhere Classified,GPC
Statement 01/04/2016 - 18/04/2016,C&YPS-Non Delegated,POST OFFICE COUNTER,01/04/2016,11.43,Postal Services - General,Postage Stamps,GPC
Statement 01/04/2016 - 18/04/2016,C&YPS-Non Delegated,POUNDSTRETCHER 175,14/04/2016,8.32,General Equipment - General,"Drapery, Window Coverings, and Upholstery Stores",GPC
Statement 01/04/2016 - 18/04/2016,C&YPS-Non Delegated,POUNDSTRETCHER 175,14/04/2016,7.89,Personal Needs of Clients - General,"Drapery, Window Coverings, and Upholstery Stores",GPC
Statement 01/04/2016 - 18/04/2016,C&YPS-Non Delegated,PREMIER INN44521815,08/04/2016,529.95,Training Expenses - General,PREMIER TRAVEL,GPC
Statement 01/04/2016 - 18/04/2016,C&YPS-Non Delegated,PREMIERMEETINGS.CO.UK,05/04/2016,313.50,Rent - General,Business Services-Not Elsewhere Classified,GPC
Statement 01/04/2016 - 18/04/2016,C&YPS-Non Delegated,PREMIERMEETINGS.CO.UK,12/04/2016,30.00,Rent - General,Business Services-Not Elsewhere Classified,GPC
Statement 01/04/2016 - 18/04/2016,C&YPS-Non Delegated,PREMIERMEETINGS.CO.UK,12/04/2016,276.00,Rent - General,Business Services-Not Elsewhere Classified,GPC
Statement 01/04/2016 - 18/04/2016,C&YPS-Non Delegated,PREMIERMEETINGS.CO.UK,13/04/2016,313.50,Rent - General,Business Services-Not Elsewhere Classified,GPC
Statement 01/04/2016 - 18/04/2016,C&YPS-Non Delegated,PROJEKT SKATEPARK LTD,07/04/2016,6.00,Other Expenditure - General,Sporting and Recreational Camps,GPC
Statement 01/04/2016 - 18/04/2016,C&YPS-Non Delegated,PROJEKT SKATEPARK LTD,07/04/2016,16.00,Other Expenditure - General,Sporting and Recreational Camps,GPC
Statement 01/04/2016 - 18/04/2016,C&YPS-Non Delegated,RANSOM PUBLISHING,05/04/2016,26.47,Other Equipment & Materials - General,Book Stores,GPC
Statement 01/04/2016 - 18/04/2016,C&YPS-Non Delegated,SAINSBURYS S/MKTS,06/04/2016,65.05,Other Equipment & Materials - General,"Grocery Stores, Supermarkets",GPC
Statement 01/04/2016 - 18/04/2016,C&YPS-Non Delegated,SAINSBURYS S/MKTS,07/04/2016,26.94,Other Equipment & Materials - General,"Grocery Stores, Supermarkets",GPC
Statement 01/04/2016 - 18/04/2016,C&YPS-Non Delegated,SUBWAY,14/04/2016,3.60,Subsistence - General,"Eating Places, Restaurants",GPC
Statement 01/04/2016 - 18/04/2016,C&YPS-Non Delegated,TESCO STORE 2849,01/04/2016,15.49,Other Expenditure - General,"Grocery Stores, Supermarkets",GPC
Statement 01/04/2016 - 18/04/2016,C&YPS-Non Delegated,TESCO STORES 2044,08/04/2016,32.00,Provisions - General,"Grocery Stores, Supermarkets",GPC
Statement 01/04/2016 - 18/04/2016,C&YPS-Non Delegated,TESCO STORES 5902,01/04/2016,100.00,Materials - General,"Grocery Stores, Supermarkets",GPC
Statement 01/04/2016 - 18/04/2016,C&YPS-Non Delegated,TESCO STORES 6300,05/04/2016,16.39,Subsistence - General,"Grocery Stores, Supermarkets",GPC
Statement 01/04/2016 - 18/04/2016,C&YPS-Non Delegated,TESCO STORES 6678,13/04/2016,3.00,Subsistence - General,"Grocery Stores, Supermarkets",GPC
Statement 01/04/2016 - 18/04/2016,C&YPS-Non Delegated,TESCO-STORES 6573,01/04/2016,11.39,Materials - General,"Grocery Stores, Supermarkets",GPC
Statement 01/04/2016 - 18/04/2016,C&YPS-Non Delegated,THE GEORGIAN GUEST,15/04/2016,540.00,Training Expenses - General,"Lodging-Hotels, Motels, Resorts",GPC
Statement 01/04/2016 - 18/04/2016,C&YPS-Non Delegated,THE RANGE,12/04/2016,8.29,Casual/Essential - General,Department Stores,GPC
Statement 01/04/2016 - 18/04/2016,C&YPS-Non Delegated,THE RANGE,05/04/2016,20.59,Materials - General,Department Stores,GPC
Statement 01/04/2016 - 18/04/2016,C&YPS-Non Delegated,THE RANGE,02/04/2016,12.98,Other Expenditure - General,Department Stores,GPC
Statement 01/04/2016 - 18/04/2016,C&YPS-Non Delegated,TIMPSON LTD,01/04/2016,38.00,Materials - General,"Shoe Repair Shops, Shoe Shine Parlors, Hat Cleanin",GPC
Statement 01/04/2016 - 18/04/2016,C&YPS-Non Delegated,TOM TOON AND DAUGHERS,15/04/2016,95.00,Provisions - General,"Equipment Rental and Leasing Services, Tool Rental",GPC
Statement 01/04/2016 - 18/04/2016,C&YPS-Non Delegated,TVLICENSING.CO.UK,07/04/2016,145.50,Other Transfer Payments - Leaving Care Grants,"Management, Consulting and Public Relations Servic",GPC
Statement 01/04/2016 - 18/04/2016,C&YPS-Non Delegated,TVLICENSING.CO.UK,01/04/2016,145.50,Schools Agency staff - Teaching Staff,"Management, Consulting and Public Relations Servic",GPC
Statement 01/04/2016 - 18/04/2016,C&YPS-Non Delegated,WAITROSE 728,16/04/2016,1.76,Provisions - General,"Grocery Stores, Supermarkets",GPC
Statement 01/04/2016 - 18/04/2016,C&YPS-Non Delegated,WILKO RETAIL LIMIT,04/04/2016,12.88,Other Expenditure - General,Household Appliance Stores,GPC
Statement 01/04/2016 - 18/04/2016,C&YPS-Non Delegated,WWW.C2UOFFICE.CO.U,07/04/2016,28.97,Materials - General,"Stationery, Office, and School Supply Stores",GPC
Statement 01/04/2016 - 18/04/2016,C&YPS-Non Delegated,WWW.C2UOFFICE.CO.U,07/04/2016,38.67,Stationery - General,"Stationery, Office, and School Supply Stores",GPC
Statement 01/04/2016 - 18/04/2016,C&YPS-Non Delegated,WWW.CORAM.ORG.UK,01/04/2016,25.60,Other Services - General,Charitable and Social Service Organizations,GPC
Statement 01/04/2016 - 18/04/2016,C&YPS-Non Delegated,WWW.MILKANDMORE.CO.UK,01/04/2016,14.04,Other Expenditure - General,Continuity/Subscription Merchants,GPC
Statement 01/04/2016 - 18/04/2016,C&YPS-Non Delegated,WWW.MILKANDMORE.CO.UK,01/04/2016,9.40,Other Expenditure - General,Continuity/Subscription Merchants,GPC
Statement 01/04/2016 - 18/04/2016,C&YPS-Non Delegated,WWW.MILKANDMORE.CO.UK,01/04/2016,6.24,Other Expenditure - General,Continuity/Subscription Merchants,GPC
Statement 01/04/2016 - 18/04/2016,C&YPS-Schools,ESPO,13/04/2016,203.40,Other Expenditure - General,Government Services-Not Elsewhere Classified,GPC
Statement 01/04/2016 - 18/04/2016,C&YPS-Schools,ESPO,15/04/2016,65.26,Other Expenditure - General,Government Services-Not Elsewhere Classified,GPC
Statement 01/04/2016 - 18/04/2016,C&YPS-Schools,ESPO,15/04/2016,91.21,Other Expenditure - General,Government Services-Not Elsewhere Classified,GPC
Statement 01/04/2016 - 18/04/2016,C&YPS-Schools,JS ONLINE GROCERY,11/04/2016,49.63,Materials - General,"Grocery Stores, Supermarkets",GPC
Statement 01/04/2016 - 18/04/2016,Chief Executive,Amazon UK Marketplace,04/04/2016,2.98,Books - General,Book Stores,GPC
Statement 01/04/2016 - 18/04/2016,Chief Executive,Amazon UK Marketplace,09/04/2016,8.95,Books - General,Book Stores,GPC
Statement 01/04/2016 - 18/04/2016,Chief Executive,Amazon UK Marketplace,04/04/2016,10.98,Materials - General,Miscellaneous and Specialty Retail Stores,GPC
Statement 01/04/2016 - 18/04/2016,Chief Executive,Amazon UK Marketplace,17/04/2016,6.72,Materials - General,Miscellaneous and Specialty Retail Stores,GPC
Statement 01/04/2016 - 18/04/2016,Chief Executive,Amazon UK Marketplace,05/04/2016,51.09,Personal Accounts - Other - General,Miscellaneous and Specialty Retail Stores,GPC
Statement 01/04/2016 - 18/04/2016,Chief Executive,Amazon UK Marketplace,06/04/2016,25.90,Personal Accounts - Other - General,Miscellaneous and Specialty Retail Stores,GPC
Statement 01/04/2016 - 18/04/2016,Chief Executive,Amazon UK Marketplace,06/04/2016,58.51,Stationery - General,Miscellaneous and Specialty Retail Stores,GPC
Statement 01/04/2016 - 18/04/2016,Chief Executive,Amazon UK Retail,15/04/2016,12.65,Other Expenditure - General,Direct Marketers - Other,GPC
Statement 01/04/2016 - 18/04/2016,Chief Executive,Amazon UK Retail,11/04/2016,65.71,Stationery - General,Direct Marketers - Other,GPC
Statement 01/04/2016 - 18/04/2016,Chief Executive,ARGOS LTD,05/04/2016,369.99,Materials - General,Discount Stores,GPC
Statement 01/04/2016 - 18/04/2016,Chief Executive,BRAY & BRAY SLCTRS,12/04/2016,357.47,Other Expenditure - General,"Legal Services, Attorneys",GPC
Statement 01/04/2016 - 18/04/2016,Chief Executive,CARTRIDGE SAVE,13/04/2016,151.18,Stationery - General,"Stationary, Office Supplies, Printing and Writing",GPC
Statement 01/04/2016 - 18/04/2016,Chief Executive,CENTRAL ENG COOP,08/04/2016,7.54,Other Expenditure - General,Department Stores,GPC
Statement 01/04/2016 - 18/04/2016,Chief Executive,CHECK SOL DISCLOSURE,15/04/2016,49.00,Schools Agency staff - Teaching Staff,Professional Services-Not Elsewhere Classified,GPC
Statement 01/04/2016 - 18/04/2016,Chief Executive,CURRYS SUPERSTORE,06/04/2016,749.16,Personal Accounts - Other - General,"RADIO, TELEVISION, AND STEREO STORES (ELECTRONIC STORES)",GPC
Statement 01/04/2016 - 18/04/2016,Chief Executive,CURRYS T/SALES,04/04/2016,50.00,Personal Accounts - Other - General,"RADIO, TELEVISION, AND STEREO STORES (ELECTRONIC STORES)",GPC
Statement 01/04/2016 - 18/04/2016,Chief Executive,DISCLOSURE SCOT,05/04/2016,25.00,Other Expenditure - General,Government Services-Not Elsewhere Classified,GPC
Statement 01/04/2016 - 18/04/2016,Chief Executive,DISCLOSURE SCOT,12/04/2016,25.00,Other Expenditure - General,Government Services-Not Elsewhere Classified,GPC
Statement 01/04/2016 - 18/04/2016,Chief Executive,FOREIGN EXCHANGE FEE,18/04/2016,2.12,IT Equipment - Licences,Misc-Unknown,GPC
Statement 01/04/2016 - 18/04/2016,Chief Executive,GROBY ROAD FLOWERS,07/04/2016,30.00,Printing - General,Florists,GPC
Statement 01/04/2016 - 18/04/2016,Chief Executive,NCP LIMITED,04/04/2016,12.00,Casual/Essential - General,Automobile Parking Lots and Garages,GPC
Statement 01/04/2016 - 18/04/2016,Chief Executive,OPTIMAL WORKSHOP,18/04/2016,77.20,IT Equipment - Licences,Computer Software Stores,GPC
Statement 01/04/2016 - 18/04/2016,Chief Executive,ROYAL MAIL,05/04/2016,286.00,Postal Services - General,Postage Stamps,GPC
Statement 01/04/2016 - 18/04/2016,Chief Executive,WILKO RETAIL LIMIT,01/04/2016,6.50,Materials - General,Household Appliance Stores,GPC
Statement 01/04/2016 - 18/04/2016,Chief Executive,WWW.JOHNLEWIS.COM,06/04/2016,379.96,Personal Accounts - Other - General,Department Stores,GPC
Statement 01/04/2016 - 18/04/2016,Corporate Resources,ACADEMY HIGH ACHIEVERS,15/04/2016,922.17,Training Expenses - General,Business and Secretarial Schools,GPC
Statement 01/04/2016 - 18/04/2016,Corporate Resources,ACTAVO-PAYMENTS.COM,14/04/2016,94.42,Materials - General,Miscellaneous and Specialty Retail Stores,GPC
Statement 01/04/2016 - 18/04/2016,Corporate Resources,Amazon UK Marketplace,05/04/2016,11.96,Other Expenditure - General,Miscellaneous and Specialty Retail Stores,GPC
Statement 01/04/2016 - 18/04/2016,Corporate Resources,Amazon UK Marketplace,07/04/2016,3.68,Stationery - General,Miscellaneous and Specialty Retail Stores,GPC
Statement 01/04/2016 - 18/04/2016,Corporate Resources,Amazon UK Retail,02/04/2016,80.93,Other Expenditure - General,Direct Marketers - Other,GPC
Statement 01/04/2016 - 18/04/2016,Corporate Resources,Amazon UK Retail,08/04/2016,15.29,Other Expenditure - General,Direct Marketers - Other,GPC
Statement 01/04/2016 - 18/04/2016,Corporate Resources,Amazon UK Retail,06/04/2016,29.96,Other Services - General,Direct Marketers - Other,GPC
Statement 01/04/2016 - 18/04/2016,Corporate Resources,Amazon UK Retail,04/04/2016,226.83,Training Expenses - General,Direct Marketers - Other,GPC
Statement 01/04/2016 - 18/04/2016,Corporate Resources,AO RETAIL LIMITED,04/04/2016,199.17,Materials - General,Household Appliance Stores,GPC
Statement 01/04/2016 - 18/04/2016,Corporate Resources,AO RETAIL LIMITED,08/04/2016,99.17,R & M Mechanical - Mechanical Repairs,Household Appliance Stores,GPC
Statement 01/04/2016 - 18/04/2016,Corporate Resources,ARCO LTD,14/04/2016,52.45,Protective Clothing & Uniforms - General,"Mens, Womens, and Childerens Uniforms and Commerci",GPC
Statement 01/04/2016 - 18/04/2016,Corporate Resources,ASDA STORES 4477,03/04/2016,3.35,Materials - General,"Grocery Stores, Supermarkets",GPC
Statement 01/04/2016 - 18/04/2016,Corporate Resources,ASDA STORES 4477,06/04/2016,1.52,Other Expenditure - General,"Grocery Stores, Supermarkets",GPC
Statement 01/04/2016 - 18/04/2016,Corporate Resources,ASDA STORES 4477,12/04/2016,4.47,Other Expenditure - General,"Grocery Stores, Supermarkets",GPC
Statement 01/04/2016 - 18/04/2016,Corporate Resources,ASDA STORES 4477,13/04/2016,3.45,Other Expenditure - General,"Grocery Stores, Supermarkets",GPC
Statement 01/04/2016 - 18/04/2016,Corporate Resources,ASDA STORES 4477,13/04/2016,7.94,Other Expenditure - General,"Grocery Stores, Supermarkets",GPC
Statement 01/04/2016 - 18/04/2016,Corporate Resources,ASDA STORES 4477,04/04/2016,4.87,Other Services - General,"Grocery Stores, Supermarkets",GPC
Statement 01/04/2016 - 18/04/2016,Corporate Resources,BOILERHOUSE BCLIVE16,13/04/2016,114.00,Conference - General,Computer Software Stores,GPC
Statement 01/04/2016 - 18/04/2016,Corporate Resources,BOILERHOUSE BCLIVE16,15/04/2016,90.00,Conference - General,Computer Software Stores,GPC
Statement 01/04/2016 - 18/04/2016,Corporate Resources,BOILERHOUSE BCLIVE16,15/04/2016,90.00,Conference - General,Computer Software Stores,GPC
Statement 01/04/2016 - 18/04/2016,Corporate Resources,BOILERHOUSE BCLIVE16,15/04/2016,90.00,Conference - General,Computer Software Stores,GPC
Statement 01/04/2016 - 18/04/2016,Corporate Resources,CO-OP GROUP 070412,05/04/2016,14.13,Other Expenditure - General,"Grocery Stores, Supermarkets",GPC
Statement 01/04/2016 - 18/04/2016,Corporate Resources,CROSS COUNTRY CC,15/04/2016,20.00,Training Expenses - General,Passenger Railways,GPC
Statement 01/04/2016 - 18/04/2016,Corporate Resources,CURRYS SUPERSTORE,02/04/2016,39.15,Materials - General,"RADIO, TELEVISION, AND STEREO STORES (ELECTRONIC STORES)",GPC
Statement 01/04/2016 - 18/04/2016,Corporate Resources,CURRYS SUPERSTORE,05/04/2016,768.99,Materials - General,"RADIO, TELEVISION, AND STEREO STORES (ELECTRONIC STORES)",GPC
Statement 01/04/2016 - 18/04/2016,Corporate Resources,CURRYS SUPERSTORE,06/04/2016,37.49,Materials - General,"RADIO, TELEVISION, AND STEREO STORES (ELECTRONIC STORES)",GPC
Statement 01/04/2016 - 18/04/2016,Corporate Resources,DE MONTFORT UNIVERSITY ON,05/04/2016,250.00,Training Expenses - General,"Colleges, Universities, Professional Schools, and",GPC
Statement 01/04/2016 - 18/04/2016,Corporate Resources,DISCLOSURE SCOT,04/04/2016,25.00,IT Equipment - Purchase - Hardware,Government Services-Not Elsewhere Classified,GPC
Statement 01/04/2016 - 18/04/2016,Corporate Resources,DISCLOSURE SCOT,14/04/2016,25.00,IT Equipment - Purchase - Hardware,Government Services-Not Elsewhere Classified,GPC
Statement 01/04/2016 - 18/04/2016,Corporate Resources,DISCLOSURE SCOT,15/04/2016,25.00,IT Equipment - Purchase - Hardware,Government Services-Not Elsewhere Classified,GPC
Statement 01/04/2016 - 18/04/2016,Corporate Resources,DIXONS,06/04/2016,19.99,Materials - General,"RADIO, TELEVISION, AND STEREO STORES (ELECTRONIC STORES)",GPC
Statement 01/04/2016 - 18/04/2016,Corporate Resources,EAST MIDLANDS LEICESTER,07/04/2016,13.50,Casual/Essential - General,Automobile Parking Lots and Garages,GPC
Statement 01/04/2016 - 18/04/2016,Corporate Resources,EAST MIDLANDS LEICESTER,08/04/2016,13.50,Casual/Essential - General,Automobile Parking Lots and Garages,GPC
Statement 01/04/2016 - 18/04/2016,Corporate Resources,EAST MIDLANDS LEICESTER,15/04/2016,21.00,Casual/Essential - General,Automobile Parking Lots and Garages,GPC
Statement 01/04/2016 - 18/04/2016,Corporate Resources,EAST MIDLANDS MARKET HAR,08/04/2016,11.00,Casual/Essential - General,Automobile Parking Lots and Garages,GPC
Statement 01/04/2016 - 18/04/2016,Corporate Resources,EAST MIDLANDS MARKET HAR,12/04/2016,11.00,Casual/Essential - General,Automobile Parking Lots and Garages,GPC
Statement 01/04/2016 - 18/04/2016,Corporate Resources,EAST MIDLANDS MARKET HAR,13/04/2016,11.00,Casual/Essential - General,Automobile Parking Lots and Garages,GPC
Statement 01/04/2016 - 18/04/2016,Corporate Resources,EAST MIDLANDS MARKET HAR,13/04/2016,11.00,Casual/Essential - General,Automobile Parking Lots and Garages,GPC
Statement 01/04/2016 - 18/04/2016,Corporate Resources,EAST MIDLANDS MARKET HAR,15/04/2016,22.00,Casual/Essential - General,Automobile Parking Lots and Garages,GPC
Statement 01/04/2016 - 18/04/2016,Corporate Resources,EASTMIDLANDSTRAINS,06/04/2016,125.58,Training Expenses - General,Passenger Railways,GPC
Statement 01/04/2016 - 18/04/2016,Corporate Resources,FOREIGN EXCHANGE FEE,12/04/2016,1.15,Subscriptions - General,Misc-Unknown,GPC
Statement 01/04/2016 - 18/04/2016,Corporate Resources,GANTTIC LLC,11/04/2016,41.90,Subscriptions - General,Miscellaneous and Specialty Retail Stores,GPC
Statement 01/04/2016 - 18/04/2016,Corporate Resources,HALF CUP,15/04/2016,6.00,Subsistence - General,"Eating Places, Restaurants",GPC
Statement 01/04/2016 - 18/04/2016,Corporate Resources,HALFORDS 0428,07/04/2016,16.66,Other Expenditure - General,Bicycle Shops-Sales and Service,GPC
Statement 01/04/2016 - 18/04/2016,Corporate Resources,HARLOW BROS LTD,15/04/2016,44.36,Other Services - General,"Building Materials, Lumber Stores",GPC
Statement 01/04/2016 - 18/04/2016,Corporate Resources,HIGGOTTS,11/04/2016,16.84,Other Services - General,Landscaping and Horticultural Services,GPC
Statement 01/04/2016 - 18/04/2016,Corporate Resources,HOUSE OF FRASER,04/04/2016,163.48,Materials - General,Department Stores,GPC
Statement 01/04/2016 - 18/04/2016,Corporate Resources,HOUSE OF FRASER,11/04/2016,163.48,Materials - General,Department Stores,GPC
Statement 01/04/2016 - 18/04/2016,Corporate Resources,HP INC UK LIMITED,12/04/2016,229.50,IT Equipment - Software,"Computers, Computer Peripheral Equipment, Software",GPC
Statement 01/04/2016 - 18/04/2016,Corporate Resources,JOLLYES PETFOOD,10/04/2016,4.75,Other Services - General,Pet Shops-Pet Food and Supplies,GPC
Statement 01/04/2016 - 18/04/2016,Corporate Resources,JOLLYES PETFOOD,17/04/2016,8.68,Other Services - General,Pet Shops-Pet Food and Supplies,GPC
Statement 01/04/2016 - 18/04/2016,Corporate Resources,LINKEDIN-2688398564,14/04/2016,227.94,Other Expenditure - General,Continuity/Subscription Merchants,GPC
Statement 01/04/2016 - 18/04/2016,Corporate Resources,LINKEDIN-269 0609724,15/04/2016,227.94,Other Expenditure - General,Continuity/Subscription Merchants,GPC
Statement 01/04/2016 - 18/04/2016,Corporate Resources,LINKEDIN-2690577174,15/04/2016,227.94,Other Expenditure - General,Continuity/Subscription Merchants,GPC
Statement 01/04/2016 - 18/04/2016,Corporate Resources,LUL TICKET MACHINE,15/04/2016,9.80,Casual/Essential - General,Passenger Railways,GPC
Statement 01/04/2016 - 18/04/2016,Corporate Resources,MAKRO SELF SERVICE LEICES,11/04/2016,5.72,Materials - General,Wholesale Clubs,GPC
Statement 01/04/2016 - 18/04/2016,Corporate Resources,METROLINK TVM,05/04/2016,3.60,Casual/Essential - General,"Bus Lines, Charters, Tour Buses",GPC
Statement 01/04/2016 - 18/04/2016,Corporate Resources,METROLINK TVM,05/04/2016,3.60,Casual/Essential - General,"Bus Lines, Charters, Tour Buses",GPC
Statement 01/04/2016 - 18/04/2016,Corporate Resources,METROLINK TVM,06/04/2016,5.40,Casual/Essential - General,"Bus Lines, Charters, Tour Buses",GPC
Statement 01/04/2016 - 18/04/2016,Corporate Resources,METROLINK TVM,08/04/2016,5.70,Casual/Essential - General,"Bus Lines, Charters, Tour Buses",GPC
Statement 01/04/2016 - 18/04/2016,Corporate Resources,METROLINK TVM,14/04/2016,5.70,Casual/Essential - General,"Bus Lines, Charters, Tour Buses",GPC
Statement 01/04/2016 - 18/04/2016,Corporate Resources,METROLINK TVM,14/04/2016,3.60,Casual/Essential - General,"Bus Lines, Charters, Tour Buses",GPC
Statement 01/04/2016 - 18/04/2016,Corporate Resources,NATIONWIDE PLATFORMS LTD,11/04/2016,190.00,Training Expenses - General,Schools and Educational Services-Not Elsewhere Cla,GPC
Statement 01/04/2016 - 18/04/2016,Corporate Resources,NATIONWIDE PLATFORMS LTD,12/04/2016,190.00,Training Expenses - General,Schools and Educational Services-Not Elsewhere Cla,GPC
Statement 01/04/2016 - 18/04/2016,Corporate Resources,OXFORD BROOKES UNI,15/04/2016,-190.00,Training Expenses - General,"Colleges, Universities, Professional Schools, and",GPC
Statement 01/04/2016 - 18/04/2016,Corporate Resources,OYSTER AUTOTOPUP,05/04/2016,20.00,Public Transport -  Staff - General,Passenger Railways,GPC
Statement 01/04/2016 - 18/04/2016,Corporate Resources,OYSTER RENEW WEB,13/04/2016,50.00,Casual/Essential - General,Passenger Railways,GPC
Statement 01/04/2016 - 18/04/2016,Corporate Resources,OYSTER RENEW WEB,13/04/2016,25.00,Public Transport -  Staff - General,Passenger Railways,GPC
Statement 01/04/2016 - 18/04/2016,Corporate Resources,PAYPAL  DARRENCAVEN,15/04/2016,100.00,Advertising - General,Professional Services-Not Elsewhere Classified,GPC
Statement 01/04/2016 - 18/04/2016,Corporate Resources,PAYPAL  SI NETWORK,05/04/2016,370.00,Training Expenses - General,Schools and Educational Services-Not Elsewhere Cla,GPC
Statement 01/04/2016 - 18/04/2016,Corporate Resources,PAYPAL  SI NETWORK,07/04/2016,35.00,Training Expenses - General,Schools and Educational Services-Not Elsewhere Cla,GPC
Statement 01/04/2016 - 18/04/2016,Corporate Resources,PETSWORLD ANIMAL FOOD,13/04/2016,4.17,Other Services - General,Pet Shops-Pet Food and Supplies,GPC
Statement 01/04/2016 - 18/04/2016,Corporate Resources,PMC ELECTRICS LIMI,06/04/2016,54.33,IT Equipment - General,Telecommunication Equipment Including Telephone Sa,GPC
Statement 01/04/2016 - 18/04/2016,Corporate Resources,PREMIER INN44521260,10/04/2016,74.00,Subsistence - General,PREMIER TRAVEL,GPC
Statement 01/04/2016 - 18/04/2016,Corporate Resources,RAIL GOURMET UK,05/04/2016,3.10,Subsistence - General,"Eating Places, Restaurants",GPC
Statement 01/04/2016 - 18/04/2016,Corporate Resources,REDACTIVE,06/04/2016,834.00,Conference - General,Business Services-Not Elsewhere Classified,GPC
Statement 01/04/2016 - 18/04/2016,Corporate Resources,REDLINE AVIATION SEC LTD,04/04/2016,7.20,Training Expenses - General,Professional Services-Not Elsewhere Classified,GPC
Statement 01/04/2016 - 18/04/2016,Corporate Resources,ROYAL MAIL,07/04/2016,358.00,Postal Services - General,Postage Stamps,GPC
Statement 01/04/2016 - 18/04/2016,Corporate Resources,ROYAL MAIL,07/04/2016,500.00,Postal Services - General,Postage Stamps,GPC
Statement 01/04/2016 - 18/04/2016,Corporate Resources,SAINSBURYS S/MKTS,15/04/2016,4.09,Materials - General,"Grocery Stores, Supermarkets",GPC
Statement 01/04/2016 - 18/04/2016,Corporate Resources,SLB SUPPLIES LTD,01/04/2016,45.00,Materials - General,Pet Shops-Pet Food and Supplies,GPC
Statement 01/04/2016 - 18/04/2016,Corporate Resources,SODEN PLASTICS,12/04/2016,10.75,R & M Mechanical - Mechanical Repairs,Miscellaneous General Merchandise Stores,GPC
Statement 01/04/2016 - 18/04/2016,Corporate Resources,STAPLES UK,13/04/2016,14.97,Stationery - General,"Stationery, Office, and School Supply Stores",GPC
Statement 01/04/2016 - 18/04/2016,Corporate Resources,STRAND PALACE HOTE,06/04/2016,476.16,Training Expenses - General,"Lodging-Hotels, Motels, Resorts",GPC
Statement 01/04/2016 - 18/04/2016,Corporate Resources,SUNNYSIDE GARDEN CENTRE,10/04/2016,21.98,Other Services - General,"Florists Supplies, Nursery Stock, and Flowers",GPC
Statement 01/04/2016 - 18/04/2016,Corporate Resources,SUNNYSIDE GARDEN CENTRE,12/04/2016,19.98,Other Services - General,"Florists Supplies, Nursery Stock, and Flowers",GPC
Statement 01/04/2016 - 18/04/2016,Corporate Resources,SUPERSTORE,14/04/2016,15.00,Subsistence - General,"Eating Places, Restaurants",GPC
Statement 01/04/2016 - 18/04/2016,Corporate Resources,SURVEYMONKEY.COM,08/04/2016,26.00,Communications Equipment - General,Computer Network/Information Services,GPC
Statement 01/04/2016 - 18/04/2016,Corporate Resources,TESCO-STORES 2846,11/04/2016,40.00,Publicity/Marketing - General,"Grocery Stores, Supermarkets",GPC
Statement 01/04/2016 - 18/04/2016,Corporate Resources,TESCO-STORES 6065,15/04/2016,3.70,Materials - General,"Grocery Stores, Supermarkets",GPC
Statement 01/04/2016 - 18/04/2016,Corporate Resources,TESCO-STORES 6573,06/04/2016,5.21,Materials - General,"Grocery Stores, Supermarkets",GPC
Statement 01/04/2016 - 18/04/2016,Corporate Resources,THE PAPER WAREHOUSE,14/04/2016,118.80,Books - General,Book Stores,GPC
Statement 01/04/2016 - 18/04/2016,Corporate Resources,TRAINLINE,12/04/2016,74.36,Public Transport -  Staff - General,Passenger Railways,GPC
Statement 01/04/2016 - 18/04/2016,Corporate Resources,TRAMLINK NOTTINGHAM LT,12/04/2016,4.00,Public Transport -  Staff - General,Transportation Services-not elsewhere,GPC
Statement 01/04/2016 - 18/04/2016,Corporate Resources,UPT-EAST MIDLANDS TRN-LB,08/04/2016,11.50,Schools Agency staff - Teaching Staff,Professional Services-Not Elsewhere Classified,GPC
Statement 01/04/2016 - 18/04/2016,Corporate Resources,UPT-EAST MIDLANDS TRN-LB,12/04/2016,11.50,Schools Agency staff - Teaching Staff,Professional Services-Not Elsewhere Classified,GPC
Statement 01/04/2016 - 18/04/2016,Corporate Resources,UPT-EAST MIDLANDS TRN-LB,14/04/2016,11.50,Schools Agency staff - Teaching Staff,Professional Services-Not Elsewhere Classified,GPC
Statement 01/04/2016 - 18/04/2016,Corporate Resources,UPT-EAST MIDLANDS TRN-LB,15/04/2016,11.50,Schools Agency staff - Teaching Staff,Professional Services-Not Elsewhere Classified,GPC
Statement 01/04/2016 - 18/04/2016,Corporate Resources,WILKO RETAIL LIMIT,11/04/2016,47.71,Other Services - General,Household Appliance Stores,GPC
Statement 01/04/2016 - 18/04/2016,Corporate Resources,WILKO RETAIL LIMIT,14/04/2016,19.95,Other Services - General,Household Appliance Stores,GPC
Statement 01/04/2016 - 18/04/2016,Corporate Resources,WM MORRISON 054,02/04/2016,16.09,Materials - General,"Grocery Stores, Supermarkets",GPC
Statement 01/04/2016 - 18/04/2016,Corporate Resources,WM MORRISON 054,17/04/2016,7.41,Other Expenditure - General,"Grocery Stores, Supermarkets",GPC
Statement 01/04/2016 - 18/04/2016,Corporate Resources,WOODLANDS GARDEN C,11/04/2016,21.31,Other Expenditure - General,"Lawn and Garden Supply Stores, Nurseries",GPC
Statement 01/04/2016 - 18/04/2016,Corporate Resources,WWW.,06/04/2016,212.00,Training Expenses - General,"Lodging-Hotels, Motels, Resorts",GPC
Statement 01/04/2016 - 18/04/2016,Corporate Resources,WWW.COMMIDEA.COM,04/04/2016,116.36,IT Equipment - Maintenance,Computer and Data Processing Services,GPC
Statement 01/04/2016 - 18/04/2016,Corporate Resources,WWW.GARDENBUILDINGSDIREC,07/04/2016,162.99,Materials - General,"Furniture, Home Furnishings and Equipment Stores,",GPC
Statement 01/04/2016 - 18/04/2016,Corporate Resources,WWW.HELLIOS.COM,12/04/2016,198.00,Training Expenses - General,Professional Services-Not Elsewhere Classified,GPC
Statement 01/04/2016 - 18/04/2016,Corporate Resources,WWW.JTOMS.CO.UK,11/04/2016,67.27,Other Services - General,Miscellaneous and Specialty Retail Stores,GPC
Statement 01/04/2016 - 18/04/2016,Corporate Resources,WWW.PCWB,13/04/2016,-640.83,IT Equipment - Software,Computer Software Stores,GPC
Statement 01/04/2016 - 18/04/2016,Corporate Resources,WWW.PCWB,13/04/2016,-640.83,IT Equipment - Software,Computer Software Stores,GPC
Statement 01/04/2016 - 18/04/2016,E&T,AGE UK IADVISORS,15/04/2016,7.41,Other Equipment & Materials - General,Miscellaneous and Specialty Retail Stores,GPC
Statement 01/04/2016 - 18/04/2016,E&T,Amazon UK Marketplace,08/04/2016,4.41,Cleaning Materials - General,Miscellaneous and Specialty Retail Stores,GPC
Statement 01/04/2016 - 18/04/2016,E&T,Amazon UK Marketplace,02/04/2016,15.52,Materials - General,Miscellaneous and Specialty Retail Stores,GPC
Statement 01/04/2016 - 18/04/2016,E&T,Amazon UK Marketplace,17/04/2016,25.00,Operational Equipment - Purchase,Miscellaneous and Specialty Retail Stores,GPC
Statement 01/04/2016 - 18/04/2016,E&T,Amazon UK Marketplace,07/04/2016,5.65,Stationery - General,Miscellaneous and Specialty Retail Stores,GPC
Statement 01/04/2016 - 18/04/2016,E&T,Amazon UK Retail,13/04/2016,180.00,Other Equipment & Materials - General,Direct Marketers - Other,GPC
Statement 01/04/2016 - 18/04/2016,E&T,Amazon UK Retail,17/04/2016,69.50,Petrol/Oil/Tyres/Spares - General,Direct Marketers - Other,GPC
Statement 01/04/2016 - 18/04/2016,E&T,Amazon UK Retail,17/04/2016,69.50,Petrol/Oil/Tyres/Spares - General,Direct Marketers - Other,GPC
Statement 01/04/2016 - 18/04/2016,E&T,Amazon UK Retail,17/04/2016,69.50,Petrol/Oil/Tyres/Spares - General,Direct Marketers - Other,GPC
Statement 01/04/2016 - 18/04/2016,E&T,Amazon UK Retail,17/04/2016,69.50,Petrol/Oil/Tyres/Spares - General,Direct Marketers - Other,GPC
Statement 01/04/2016 - 18/04/2016,E&T,Amazon UK Retail,17/04/2016,69.50,Petrol/Oil/Tyres/Spares - General,Direct Marketers - Other,GPC
Statement 01/04/2016 - 18/04/2016,E&T,Amazon UK Retail,17/04/2016,69.50,Petrol/Oil/Tyres/Spares - General,Direct Marketers - Other,GPC
Statement 01/04/2016 - 18/04/2016,E&T,Amazon UK Retail,17/04/2016,138.99,Petrol/Oil/Tyres/Spares - General,Direct Marketers - Other,GPC
Statement 01/04/2016 - 18/04/2016,E&T,DVLA VEHICLE TAX,12/04/2016,232.50,Road Licences - General,Government Services-Not Elsewhere Classified,GPC
Statement 01/04/2016 - 18/04/2016,E&T,DVLA VEHICLE TAX,12/04/2016,297.50,Road Licences - General,Government Services-Not Elsewhere Classified,GPC
Statement 01/04/2016 - 18/04/2016,E&T,DVLA VEHICLE TAX,12/04/2016,202.50,Road Licences - General,Government Services-Not Elsewhere Classified,GPC
Statement 01/04/2016 - 18/04/2016,E&T,DVSA MOT COMP 2,11/04/2016,205.00,Materials - General,Government Services-Not Elsewhere Classified,GPC
Statement 01/04/2016 - 18/04/2016,E&T,EAST MIDLANDS TRAI,12/04/2016,12.30,Other Services - General,Passenger Railways,GPC
Statement 01/04/2016 - 18/04/2016,E&T,EAST MIDLANDS TRAI,12/04/2016,-12.30,Public Transport -  Staff - General,Passenger Railways,GPC
Statement 01/04/2016 - 18/04/2016,E&T,EAST MIDLANDS TRAI,12/04/2016,12.40,Public Transport -  Staff - General,Passenger Railways,GPC
Statement 01/04/2016 - 18/04/2016,E&T,EASTMIDLANDSTRAINS,07/04/2016,374.60,Public Transport -  Staff - General,Passenger Railways,GPC
Statement 01/04/2016 - 18/04/2016,E&T,EASTMIDLANDSTRAINS,07/04/2016,168.50,Public Transport -  Staff - General,Passenger Railways,GPC
Statement 01/04/2016 - 18/04/2016,E&T,EASTMIDLANDSTRAINS,11/04/2016,17.80,Public Transport -  Staff - General,Passenger Railways,GPC
Statement 01/04/2016 - 18/04/2016,E&T,EASTMIDLANDSTRAINS,11/04/2016,23.80,Public Transport -  Staff - General,Passenger Railways,GPC
Statement 01/04/2016 - 18/04/2016,E&T,EASTMIDLANDSTRAINS,13/04/2016,257.00,Public Transport -  Staff - General,Passenger Railways,GPC
Statement 01/04/2016 - 18/04/2016,E&T,EASTMIDLANDSTRAINS,13/04/2016,-117.60,Public Transport -  Staff - General,Passenger Railways,GPC
Statement 01/04/2016 - 18/04/2016,E&T,EASTMIDLANDSTRAINS,15/04/2016,222.00,Public Transport -  Staff - General,Passenger Railways,GPC
Statement 01/04/2016 - 18/04/2016,E&T,FOREIGN EXCHANGE FEE,11/04/2016,9.40,IT Equipment - Licences,Misc-Unknown,GPC
Statement 01/04/2016 - 18/04/2016,E&T,PAYPAL  HOUSELORDSP,13/04/2016,16.17,Other Expenditure - General,Government Services-Not Elsewhere Classified,GPC
Statement 01/04/2016 - 18/04/2016,E&T,SP   LAKES ENVIRONMENT,08/04/2016,284.95,IT Equipment - Licences,Computer Software Stores,GPC
Statement 01/04/2016 - 18/04/2016,Leicestershire Highways,Amazon UK Marketplace,14/04/2016,49.95,Books - General,Book Stores,GPC
Statement 01/04/2016 - 18/04/2016,Leicestershire Highways,Amazon UK Marketplace,08/04/2016,12.40,Materials - General,Miscellaneous and Specialty Retail Stores,GPC
Statement 01/04/2016 - 18/04/2016,Leicestershire Highways,Amazon UK Marketplace,11/04/2016,36.99,Materials - General,Miscellaneous and Specialty Retail Stores,GPC
Statement 01/04/2016 - 18/04/2016,Leicestershire Highways,Amazon UK Marketplace,13/04/2016,8.75,Materials - General,Miscellaneous and Specialty Retail Stores,GPC
Statement 01/04/2016 - 18/04/2016,Leicestershire Highways,Amazon UK Marketplace,14/04/2016,22.35,Materials - General,Miscellaneous and Specialty Retail Stores,GPC
Statement 01/04/2016 - 18/04/2016,Leicestershire Highways,Amazon UK Retail,14/04/2016,10.97,Other Expenditure - General,Direct Marketers - Other,GPC
Statement 01/04/2016 - 18/04/2016,Leicestershire Highways,DVLA VEHICLE TAX,12/04/2016,167.50,Road Licences - General,Government Services-Not Elsewhere Classified,GPC
Statement 01/04/2016 - 18/04/2016,Leicestershire Highways,DVLA VEHICLE TAX,12/04/2016,202.50,Road Licences - General,Government Services-Not Elsewhere Classified,GPC
Statement 01/04/2016 - 18/04/2016,Leicestershire Highways,DVLA VEHICLE TAX,12/04/2016,232.50,Road Licences - General,Government Services-Not Elsewhere Classified,GPC
Statement 01/04/2016 - 18/04/2016,Leicestershire Highways,DVLA VEHICLE TAX,12/04/2016,167.50,Road Licences - General,Government Services-Not Elsewhere Classified,GPC
Statement 01/04/2016 - 18/04/2016,Leicestershire Highways,DVLA VEHICLE TAX,12/04/2016,167.50,Road Licences - General,Government Services-Not Elsewhere Classified,GPC
Statement 01/04/2016 - 18/04/2016,Leicestershire Highways,DVLA VEHICLE TAX,12/04/2016,167.50,Road Licences - General,Government Services-Not Elsewhere Classified,GPC
Statement 01/04/2016 - 18/04/2016,Leicestershire Highways,DVLA VEHICLE TAX,12/04/2016,167.50,Road Licences - General,Government Services-Not Elsewhere Classified,GPC
Statement 01/04/2016 - 18/04/2016,Leicestershire Highways,SCREWFIX DIRECT,13/04/2016,199.90,R & M of Buildings - General,"Building Materials, Lumber Stores",GPC
Statement 01/04/2016 - 18/04/2016,Public Health,Amazon UK Marketplace,12/04/2016,3.99,IT Equipment - Purchase - Hardware,Miscellaneous and Specialty Retail Stores,GPC
Statement 01/04/2016 - 18/04/2016,Public Health,B&Q DIRECT,07/04/2016,32.17,Other Equipment & Materials - General,"Building Materials, Lumber Stores",GPC
Statement 01/04/2016 - 18/04/2016,Public Health,CHARNWOOD BOROUGH COUNCI,08/04/2016,2.20,Subsistence - General,Automobile Parking Lots and Garages,GPC
Statement 01/04/2016 - 18/04/2016,Public Health,NCP LIMITED,05/04/2016,12.00,Subsistence - General,Automobile Parking Lots and Garages,GPC
Statement 01/04/2016 - 18/04/2016,Public Health,PAYPAL  F3 CIC,11/04/2016,15.00,Other Agency & Cont Services - General,"Civic, Social, and Fraternal Associations",GPC
Statement 01/04/2016 - 18/04/2016,Public Health,SNOWDOME LTD,04/04/2016,500.00,Consultants & Specialists - General,"Membership Clubs (Sports, Recreation, Athletic), C",GPC
Statement 01/04/2016 - 18/04/2016,Public Health,TRAINLINE,04/04/2016,71.20,Public Transport -  Staff - General,Passenger Railways,GPC
Statement 01/04/2016 - 18/04/2016,Public Health,TRAINLINE,05/04/2016,30.24,Public Transport -  Staff - General,Passenger Railways,GPC
"**Amounts stated are net of VAT, except where VAT has not been recovered.",,,,,,,
